Workbook

Sheet _control (hidden)
A1: * | B1: Control Worksheet (NB any row with a '*' as the first character in column A is ignored)
A4: * | B4: Global Parameters (setdefault will be used unless parameter of same name is passed in from Agresso)
A5: * | B5: Parameter | C5: Value
A6: setdefault | B6: client | C6: F6
A7: setdefault | B7: period | C7: 201910
A9: setdefault | B9: date
A10: setdefault | B10: date-1
A11: setdefault | B11: date_x
A13: * | B13: setnum allows use of arithmetic expressions on parameters
A14: setnum | B14: year | C14: <period> \ 100
A15: setnum | B15: pyear | C15: <year> - 1
A16: setnum | B16: period0 | C16: <year> * 100
A18: * | B18: setperiod allows use of arithmetic expressions on period parameters
A19: * | B19: e.g. set previous 12 periods for a rolling 12 month crosstab by period
A20: *setperiod | B20: period1 | C20: <period> - 11
A21: *setperiod | B21: period2 | C21: <period> - 10
A22: *setperiod | B22: period3 | C22: <period> - 9
A23: *setperiod | B23: period4 | C23: <period> - 8
A24: *setperiod | B24: period5 | C24: <period> - 7
A25: *setperiod | B25: period6 | C25: <period> - 6
A26: *setperiod | B26: period7 | C26: <period> - 5
A27: *setperiod | B27: period8 | C27: <period> - 4
A28: *setperiod | B28: period9 | C28: <period> - 3
A29: *setperiod | B29: period10 | C29: <period> - 2
A30: *setperiod | B30: period11 | C30: <period> - 1
A31: *set | B31: period12 | C31: <period>
A35: * | B35: Worksheet Directory
A36: * | B36: Sheet Name | C36: Template Name | D36: Local Parameters

Sheet Bevilgningsrapportering
A2: Bevilgningsrapport for 2019
A3: Utgiftskapittel | B3: Kapittelnamn | C3: Post | D3: Posttekst | E3: Note | F3: Samla løyving | G3: Rekneskap 2019 | H3: Meirutgift (-) og mindreutgift
A5: 0339 | B5: Lotteri- og stiftelsestilsynet | C5: 01 | D5: Driftsutgifter | E5: A, B | F5: ='Note A'!D4 -> 82915000 | G5: 82874288.37 | H5: =F5-G5 -> 40711.63
A6: 0339 | B6: Lotteri- og stiftelsestilsynet | C6: 21 | D6: Spesielle driftsutgifter | E6: A, B | F6: ='Note A'!D5 -> 10500000 | G6: 12753485.73 | H6: =F6-G6 -> -2253485.73
A7: 0315 | B7: Frivilligheitsformål | C7: 70 | D7: Mva.kompensasjon frivillige organisasjonar | E7: A | F7: ='Note A'!D6 -> 1607600000 | G7: 1607243860 | H7: =F7-G7 -> 356140
A8: 0315 | B8: Frivilligheitsformål | C8: 82 | D8: Mva.kompensasjon bygging idrettsanlegg | E8: A | F8: ='Note A'!D7 -> 288400000 | G8: 272004191 | H8: 16395809
A9: 1633 | B9: Nettoordning for mva i staten | C9: 01 | D9: Driftsutgifter | F9: 0 | G9: 6502814.2
F10: 0 | G10: 0
A11: Sum utgiftsført | F11: =SUM(F4:F10) -> 1989415000 | G11: =SUM(G4:G10) -> 1981378639
A13: Inntektskapittel | B13: Kapittelnamn | C13: Post | D13: Posttekst | F13: Samla løyving | G13: Rekneskap 2019 | H13: Meirinntekt og mindreinntekt(-)
A15: 3339 | B15: Inntekter frå spel, lotteri og stiftelsar | C15: 02 | D15: Gebyr lotteri | E15: B | F15: 6757000 | G15: 8770477 | H15: =G15-F15 -> 2013477
A16: 3339 | B16: Inntekter frå spel, lotteri og stiftelsar | C16: 04 | D16: Registreringsgebyr stiftelsar | E16: B | F16: 161000 | G16: 221580 | H16: 60580
A17: 3339 | B17: Inntekter frå spel, lotteri og stiftelsar | C17: 07 | D17: Inntekter ved oppdrag | E17: B | F17: 9629000 | G17: 12383000 | H17: 2754000
A18: 5568 | B18: Sektoravgifter under Kulturdepartementet | C18: 71 | D18: Årsavgift stiftelsar | E18: B | F18: 24215000 | G18: 24609739 | H18: =G18-F18 -> 394739
A19: 5568 | B19: Sektoravgifter under Kulturdepartementet | C19: 73 | D19: Refusjon Norsk Tipping og Rikstoto | F19: 41197000 | G19: 41197000 | H19: =G19-F19 -> 0
A20: 5309 | B20: Tilfeldige inntekter | C20: 29 | D20: Ymse | F20: 0 | G20: 4948805
A21: 5700 | B21: Arbeidsgjevaravgift | C21: 72 | D21: Arbeidsgjevaravgift | F21: 0 | G21: 6674702.37
A23: Sum inntektsført | F23: =SUM(F14:F21) -> 81959000 | G23: =SUM(G14:G21) -> 98805303.37
A25: Netto rapportert til bevilgningsrekneskapen | G25: =G11-G23 -> 1882573336
A26: Kapitalkontoar
A27: 60075901 | B27: Norges Bank KK /innbetalingar | G27: 95402574.79
A28: 60075902 | B28: Norges Bank KK/utbetalingar | G28: -1976780740
A29: 703803 | B29: Endring i mellomvære med statskassa | G29: -1195170.85
A30: Sum rapportert | G30: =SUM(G25:G29) -> -9.54605639e-08
A32: Behaldningar rapportert til kapitalrekneskapen (31.12)
F33: 31.12.2019 | G33: 31.12.2018 | H33: Endring
A34: =A37 -> 703803 | B34: Mellomvære med statskassa | F34: =C37+C38 -> -3149256.6 | G34: =C37 -> -1954085.75 | H34: =SUM(F34-G34) -> -1195170.85
C35: 0
C36: 0
A37: 703803 | B37: 3 | C37: -1954085.75
A38: 703803 | B38: 4 | C38: -1195170.85

Sheet Note A
A2: Note A Forklaring av samla løyving
A3: Kapittel og post | B3: Overført frå i fjor | C3: Årets tildelingar | D3: Sama løyving
A4: 33901 | B4: 3248000 | C4: 79667000 | D4: =B4+C4 -> 82915000
A5: 33921 | B5: 2085000 | C5: 8415000 | D5: =B5+C5 -> 10500000
A6: 31570 | B6: 0 | C6: 1607600000 | D6: 1607600000
A7: 31582 | B7: 0 | C7: 288400000 | D7: 288400000

Sheet Note B
A2: Note B Forklaring til brukte fullmakter og berekning av mogeleg overførbart beløp til neste år
A3: Kapittel og post | B3: Stikkord | C3: Meriutgift(-)/ mindreutgift | D3: Utgiftsført av andre i hht avgitte belastnings-fullmakter (-) | E3: Meirutgift(-)/ mindreutgift etter avgitte belastningsfullmakter | F3: Meirinntekter / mindreinntekter(-) iht meirinntektsfullmakt (justert for eventuell mva.) | G3: Omdisponering frå post 01 til 45 eller til post 01/21 frå neste års løyving | H3: Innsparingar(-) | I3: Sum grunnlag for overføring | J3: Maks. overførbart beløp * | K3: Mulig overførbart beløp berekna av verksemda
A4: 33901 | C4: =Bevilgningsrapportering!H5 -> 40711.63 | E4: =C4+D4 -> 40711.63 | F4: =Bevilgningsrapportering!H15+Bevilgningsrapportering!H16+Bevilgningsrapportering!H18 -> 2468796 | I4: =E4+F4+G4+H4 -> 2509507.63 | J4: 3983000 | K4: =I4 -> 2509507.63
A5: 33921 | B5: "kan overførast" | C5: =Bevilgningsrapportering!H6 -> -2253485.73 | E5: =C5+D5 -> -2253485.73 | F5: =Bevilgningsrapportering!H17 -> 2754000 | I5: =E5+F5+G5-H5 -> 500514.27 | K5: =I5 -> 500514.27
A6: 31570 | C6: =[1]Bevilgningsrapportering!H7 -> 0 | E6: =C6+D6 -> 0 | I6: 0
A7: 31582 | C7: =[1]Bevilgningsrapportering!H8 -> 314 | E7: 314 | I7: 0
A8: *Maksimalt beløp som kan overførast er 5 % av årets løyving på driftspostane 01-29, unnateke post 24 eller sum av dei siste to års løyvingar for postar med stikkordet "kan overførast". Sjå rundskriv R-2/2013 for meir informasjon om overføring av ubrukte løyvingar.

Sheet Artskontorapportering
A2: KONTI: | B2: Artskontorapport for 2019
C3: Note | D3: 2019 | E3: 2018
B4: Driftsinntekter rapportert til bevilgningsrekneskapen
A5: 370-374 | B5: Innbetalingar frå gebyr | C5: 1 | D5: 8992057 | E5: 51242325
A6: else 3* | B6: Andre innbetalingar | C6: 1 | D6: 12383000 | E6: 7838260.2
B7: Sum innbetalingar frå drift | D7: =SUM(D4:D6) -> 21375057 | E7: =SUM(E4:E6) -> 59080585.2
B9: Driftsutgifter rapportert til bevilgningsrekneskapen
A10: 500-557;570-599 | B10: Utbetalingar til løn | C10: 2 | D10: 54389628.5 | E10: 51190275.33
A11: 400-454;610-787 | B11: Andre utbetalingar til drift | C11: 3 | D11: 34708349.82 | E11: 29570803.19
B12: Sum utbetalingar til drift | D12: =SUM(D9:D11) -> 89097978.32 | E12: =SUM(E9:E11) -> 80761078.52
B14: Netto rapporterte driftsutgifter | D14: =D12-D7 -> 67722921.32 | E14: =E12-E7 -> 21680493.32
B16: Investerings- og finansutgifter rapportert til bevilgningsrekneskapen
A17: 100-129;470-499 | B17: Utbetaling til investeringar | C17: 5 | D17: 4223801.52 | E17: 3139325.4
A18: 815-819 | B18: Utbetaling av finansutgifter | C18: 4 | D18: 5994.26 | E18: 2679.21
B19: Sum investerings- og finansutgifter | D19: =SUM(D16:D18) -> 4229795.78 | E19: =SUM(E16:E18) -> 3142004.61
B21: Netto rapporterte investerings- og finansutgifter | D21: =D19 -> 4229795.78 | E21: =E19 -> 3142004.61
B23: Innkrevingsverksemd og andre overføringar til staten
A24: 821-849 | B24: Innbetaling av skattar, avgifter, gebyr m.m. | C24: 6 | D24: 70669394 | E24: 25428443.84
B25: Sum innkrevingsverksemd og andre overføringar til staten | D25: =SUM(D23:D24) -> 70669394 | E25: =SUM(E23:E24) -> 25428443.84
B27: Tilskotsforvaltning og andre overføringar frå staten
A28: 851-879 | B28: Utbetalingar av tilskot og stønader | C28: 7 | D28: 1881548051 | E28: 1729652686
B29: Sum tilskotsforvaltning og andre overføringar frå staten | D29: =SUM(D27:D28) -> 1881548051 | E29: =SUM(E27:E28) -> 1729652686
B31: Inntekter og utgifter rapportert på felleskapittel
A32: 1985 | B32: Gruppelivsforsikring konto 1985 (ref. kap. 5309, inntekt) | D32: 86150 | E32: 87516.12
A33: 1986 | B33: Arbeidsgjevaravgift konto 1986 (ref. kap. 5700, inntekt) | D33: 6674702.37 | E33: 6311492.15
A34: 1987 | B34: Nettoføringsordning for meirverdiavgift konto 1987 (ref. kap. 1633, utgift) | D34: 6502814.2 | E34: 5002744.81
B35: Netto rapporterte utgifter på felleskapittel | D35: =D34-D33-D32 -> -258038.17 | E35: =E34-E33-E32 -> -1396263.46
B37: Netto rapportert til bevilgningsrekneskapen | D37: =D14+D21-D25+D29+D35 -> 1882573336 | E37: =E14+E21-E25+E29+E35 -> 1727650477
B39: Oversikt over mellomvære med statskassa
B40: Eigedelar og gjeld | D40: 2019 | E40: 2018
A41: 154;160-161;164;139;150-152;157;170-179 | B41: Lån til tilsette | D41: 0 | E41: 23056.25
A42: 260-265;269 | B42: Skuldig skattetrekk og andre trekk | D42: -2023096 | E42: -1806162
A43: 270-274;277;279 | B43: Skuldig meirverdiavgift | D43: -1129192 | E43: -170980
A44: 221-222;229;232;236;239;240;280-282;290-299 | B44: Annan kortsiktig gjeld | D44: 3031.4 | E44: 0
B45: Sum mellomvære med statskassa | C45: 8 | D45: =SUM(D41:D44) -> -3149256.6 | E45: =SUM(E41:E44) -> -1954085.75

Sheet Note 1 - Innbetalinger
A2: Note 1 Inntekter rapportert til bevilgningsrekneskapen
H3: 2019 | I3: 2018
A4: Innbetalingar frå gebyr, avgifter og refusjonar
A5: Gebyr lotteri | H5: 8770477 | I5: 8085765
A6: Sakshandsamingsgebyr samvirkelova | H6: 56000 | I6: 28000
A7: Registreringsgebyr stiftelsar | H7: 165580 | I7: 167560
A8: Refusjon Norsk Tipping * | H8: 0 | I8: 40463000
A9: Refusjon Norsk Rikstoto * | H9: 0 | I9: 2498000
A10: Sum innbetalingar frå gebyr | H10: =SUM(H4:H9) -> 8992057 | I10: =SUM(I4:I9) -> 51242325
A12: Andre innbetalingar
A13: Oppdrag utvikling av anleggsregister | H13: 3200000 | I13: 0
A14: Handlingsplan mot speleproblem | H14: 6283000 | I14: 4670000
A15: Nasjonal plattform mot kampfiksing | H15: 2900000 | I15: 2900000
A16: Annan inntekt, refusjonar | H16: 0 | I16: 268260.2
A17: Sum andre innbetalinger | H17: =SUM(H12:H16) -> 12383000 | I17: =SUM(I12:I16) -> 7838260.2
A19: Sum innbetalinger fra drift | H19: =H10+H17 -> 21375057 | I19: =I10+I17 -> 59080585.2
A21: * Refusjon Norsk Tipping og Norsk Rikstoto vart i 2018 ført på artskonto 370 i staden for 842.

Sheet Note 2 - Lønn
A2: Note 2 Utbetalingar til løn
F3: 2019 | G3: 2018
A4: Løn | F4: 44109305.93 | G4: 40748004.57
A5: Arbeidsgjevaravgift | F5: 6674702.37 | G5: 6311492.15
A6: Pensjonsutgifter | F6: 5000843.9 | G6: 4617628.1
A7: Sjukepengar og andre refusjonar (-) | F7: -2503357.29 | G7: -1219934.5
A8: Andre ytingar | F8: 1108133.59 | G8: 733085.01
A9: Sum utbetalingar til løn | F9: =SUM(F4:F8) -> 54389628.5 | G9: =SUM(G4:G8) -> 51190275.33
A11: Tal årsverk: | F11: 63 | G11: 62

Sheet Note 3 - Andre driftsutgifter
A2: KONTI: | B2: Note 3 Andre utbetalingar til drift
G3: 2019 | H3: 2018
A4: 630-631 | B4: Husleige | G4: 6138697 | H4: 6118138
A5: 663 | B5: Vedlikehald og ombygging av leigde lokale | G5: 213556.59 | H5: 313683.4
A6: 632-639 | B6: Andre utgifter til drift av eigedom og lokale | G6: 1558356.55 | H6: 1199554.51
A7: 664-669 | B7: Reparasjon og vedlikehald av maskiner, utstyr m.m. | G7: 263666.3 | H7: 242531.68
A8: 650-659 | B8: Mindre innkjøp av utstyr | G8: 490861.84 | H8: 296193.12
A9: 640-649 | B9: Leige av datautstyr og system (årlege lisensar m.m.) | G9: 4948133.93 | H9: 4362751.52
A10: 670-673 | B10: Kjøp av konsulenttenester | G10: 8620094.92 | H10: 3752272.54
A11: 674-679 | B11: Kjøp av framande tenester | G11: 7006487.37 | H11: 6667124.79
A12: 710-719 | B12: Reiser og diett | G12: 2279102.34 | H12: 2443460.18
A13: else 400-454; NOT 8* | B13: Andre driftsutgifter | G13: 3189392.98 | H13: 4175093.45
B14: Sum andre utbetalingar til drift | G14: =SUM(G4:G13) -> 34708349.82 | H14: =SUM(H4:H13) -> 29570803.19

Sheet Note 4 - Finans
A2: KONTI: | B2: Note 4 Finansutgifter
F3: 2019 | G3: 2018
B4: Utbetaling av finansutgifter
A5: 815 | B5: Renteutgifter | F5: 5994.26 | G5: 2679.21
B6: Sum utbetaling av finansutgifter | F6: =SUM(F4:F5) -> 5994.26 | G6: =SUM(G4:G5) -> 2679.21

Sheet Note 5 - Investeringer
A2: KONTI: | B2: Note 5 Utbetaling til investeringer og kjøp av aksjer
F3: 2019 | G3: 2018
B4: Utbetaling til investeringar
A5: else 11*;12*;4* | B5: Inventar, datamaskiner (serverar m.m.) | F5: 4223801.52 | G5: 3139325.4
B6: Sum utbetaling til investeringar | F6: =SUM(F5:F5) -> 4223801.52 | G6: =SUM(G5:G5) -> 3139325.4

Sheet Note 6 - Innkrevingsvirksomhet
A2: KONTI: | B2: Note 6 Innkrevingsverksemd og andre overføringar til staten
F3: 2019 | G3: 2018
B4: Refusjon Norsk Tipping * | F4: 38669144 | G4: 0
B5: Refusjon Norsk Rikstoto * | F5: 2527856 | G5: 0
B6: Avgifter stiftelsesområdet | F6: 24533180 | G6: 24299432
B7: Diverse refusjonar | F7: 76559 | G7: 0
B8: Tilfeldige og andre inntekter | F8: 4862655 | G8: 1129012
B9: Sum innkrevingsverksemd og andre overføringar til staten | F9: =SUM(F4:F8) -> 70669394 | G9: =SUM(G4:G8) -> 25428444
B11: * Refusjon Norsk Tipping og Norsk Rikstoto vart i 2018 ført på artskonto 370 i staden for 842.

Sheet Note 7 - Tilskuddsforvaltning
A2: KONTI: | B2: Note 7 Tilskotsforvaltning og andre overføringar frå staten
F3: 2019 | G3: 2018
B4: Mva.kompensasjon frivillige organisasjonar | F4: 1607243860 | G4: 1423500000
B5: Mva.kompensasjon bygging av idrettsanlegg | F5: 272004191 | G5: 304002686
A6: 85*;86*;87* | B6: Tilskot handlingsplan mot speleavhengigheit | F6: 2300000 | G6: 2150000
B7: Sum tilskotsforvaltning og andre overføringar frå staten
B8: Sum tilskotsforvaltning og andre overføringar frå staten | F8: =SUM(F4:F6) -> 1881548051 | G8: =SUM(G4:G6) -> 1729652686

Sheet Note 8- Sammenheng statskassen
C2: Note 8 Samanheng mellom avrekning med statskassa og mellomverande med statskassa
C4: Del A Skilnaden mellom avrekning med statskassa og mellomvære med statskassa
H5: 2019-12-31 | I5: 2019-12-31
A6: 0 | H6: Spesifisering av bokført avrekning med statskassa | I6: Spesifisering av rapportert mellomvære med statskassa | J6: Skilnad
A7: 0 | C7: Omløpsmidlar
A8: 0 | D8: Kundefordringar | H8: 112995 | I8: 0 | J8: =H8-I8 -> 112995
A9: 0 | D9: Sum | H9: =SUM(H8:H8) -> 112995 | I9: =SUM(I8:I8) -> 0 | J9: =H9-I9 -> 112995
A10: 0 | C10: Kortsiktig gjeld
A11: -2023096 | D11: Skuldig skattetrekk | H11: -2023096 | I11: -2023096 | J11: =H11-I11 -> 0
D12: Skuldig meirverdiavgift | H12: -1129192 | I12: -1129192 | J12: =H12-I12 -> 0
A13: -1129192 | D13: Annan kortsiktig gjeld | H13: 3031 | I13: 3031
A14: 3031.4 | D14: Sum | H14: =SUM(H11:H13) -> -3149257 | I14: =SUM(I11:I13) -> -3149257 | J14: =SUM(J11:J12) -> 0
A15: 0
C16: Sum | H16: =H9+H14 -> -3036262 | I16: =I9+I14 -> -3149257 | J16: =J9+J14 -> 112995
